fUSD/lending_fUSD_20250511
["ID","MTS","AMOUNT","RATE_DAILY","PERIOD"]
[360700690,1746939041405,-400.0,0.00019491,2]
[360700691,1746939041416,-400.0,0.00019491,2]
[360700692,1746939041427,-400.0,0.00019491,2]
[360700693,1746939041439,-400.0,0.00019491,2]
[360700694,1746939041450,-400.0,0.00019491,2]
[360700695,1746939041461,-400.0,0.00019491,2]
[360700696,1746939041472,-400.0,0.00019491,2]
[360700697,1746939041483,-400.0,0.00019491,2]
[360700698,1746939041493,-400.0,0.00019491,2]
[360700699,1746939041504,-400.0,0.00019491,2]
[360700700,1746939041516,-400.0,0.00019491,2]
[360700701,1746939041530,-400.0,0.00019491,2]
[360700702,1746939041541,-400.0,0.00019491,2]
[360700703,1746939041552,-400.0,0.00019491,2]
[360700704,1746939041563,-400.0,0.00019491,2]
[360700705,1746939041575,-400.0,0.00019491,2]
[360700706,1746939041585,-400.0,0.00019491,2]
[360700707,1746939041596,-400.0,0.00019491,2]
[360700708,1746939041607,-495.16,0.00019491,2]
[360700709,1746939041617,-245.92988032,0.00019491,2]
[360700710,1746939041628,-400.0,0.00019491,2]
[360700711,1746939041638,-400.0,0.00019491,2]
[360700712,1746939041647,-400.0,0.00019491,2]
[360700713,1746939041656,-400.0,0.00019491,2]
[360700714,1746939041665,-400.0,0.00019491,2]
[360700715,1746939041674,-400.0,0.00019491,2]
[360700716,1746939041683,-528.76,0.00019491,2]
[360700717,1746939041692,-400.0,0.00019491,2]
[360700718,1746939041702,-941.73143009,0.00019491,2]
[360700719,1746939041711,-400.0,0.00019491,2]
[360700720,1746939041723,-400.0,0.00019491,2]
[360700721,1746939041732,-400.0,0.00019491,2]
[360700722,1746939041744,-421.74,0.00019491,2]
[360700723,1746939041754,-400.0,0.00019491,2]
[360700724,1746939041763,-400.0,0.00019491,2]
[360700725,1746939041773,-400.0,0.00019491,2]
[360700726,1746939041783,-400.0,0.00019491,2]
[360700727,1746939042045,-400.0,0.00019491,2]
[360700728,1746939042063,-400.0,0.00019491,2]
[360700729,1746939042074,-400.0,0.00019491,2]
[360700730,1746939042084,-400.0,0.00019491,2]
[360700731,1746939042093,-400.0,0.00019491,2]
[360700732,1746939042102,-400.0,0.00019491,2]
[360700733,1746939042112,-400.0,0.00019491,2]
[360700734,1746939042121,-400.0,0.00019491,2]
[360700735,1746939042131,-400.0,0.00019491,2]
[360700736,1746939042140,-400.0,0.00019491,2]
[360700737,1746939042149,-400.0,0.00019491,2]
[360700738,1746939042159,-400.0,0.00019491,2]
[360700739,1746939042168,-400.0,0.00019491,2]
[360700740,1746939042177,-400.0,0.00019491,2]
[360700741,1746939042186,-400.0,0.00019491,2]
[360700742,1746939042195,-500.0,0.00019491,2]
[360700743,1746939042205,-400.0,0.00019491,2]
[360700744,1746939042214,-538.28,0.00019491,2]
[360700746,1746939042225,-400.0,0.00019491,2]
[360700747,1746939042235,-400.0,0.00019491,2]
[360700749,1746939042244,-400.0,0.00019491,2]
[360700750,1746939042253,-179.65934169,0.00019491,2]
[360700751,1746939042263,-400.0,0.00019491,2]
[360700752,1746939042272,-406.89068817,0.00019491,2]
[360700753,1746939042281,-400.0,0.00019491,2]
[360700754,1746939042290,-424.94856012,0.00019491,2]
[360700755,1746939042301,-453.11374431,0.00019491,2]
[360700756,1746939042311,-400.0,0.00019491,2]
[360700757,1746939042321,-404.24354569,0.00019491,2]
[360700759,1746939042332,-400.0,0.00019491,2]
[360700760,1746939042342,-400.0,0.00019491,2]
[360700761,1746939042351,-310.70557539,0.00019491,2]
[360700762,1746939042360,-210.51216848,0.00019491,2]
[360700763,1746939042369,-400.0,0.00019491,2]
[360700764,1746939042379,-400.0,0.00019491,2]
[360700765,1746939042388,-400.0,0.00019491,2]
[360700766,1746939042397,-401.56,0.00019491,2]
[360700768,1746939042406,-400.0,0.00019491,2]
[360700770,1746939042416,-400.0,0.00019491,2]
[360700771,1746939042426,-400.0,0.00019491,2]
[360700772,1746939042435,-400.0,0.00019491,2]
[360700773,1746939042445,-400.0,0.00019491,2]
[360700774,1746939042454,-242.57823352,0.00019491,2]
[360700775,1746939042463,-400.0,0.00019491,2]
[360700776,1746939042472,-400.0,0.00019491,2]
[360700777,1746939042482,-400.0,0.00019491,2]
[360700778,1746939042491,-400.0,0.00019491,2]
[360700779,1746939042501,-400.0,0.00019491,2]
[360700780,1746939042510,-400.0,0.00019491,2]
[360700781,1746939042520,-410.65660702,0.00019491,2]
[360700782,1746939042532,-400.0,0.00019491,2]
[360700783,1746939042542,-400.0,0.00019491,2]
[360700784,1746939042552,-400.0,0.00019491,2]
[360700785,1746939042562,-400.0,0.00019491,2]
[360700786,1746939042571,-400.0,0.00019491,2]
[360700787,1746939042583,-403.68716271,0.00019491,2]
[360700788,1746939042592,-400.0,0.00019491,2]
[360700789,1746939042603,-427.86066205,0.00019491,2]
[360700790,1746939042612,-400.0,0.00019491,2]
[360700791,1746939042621,-500.0,0.00019491,2]
[360700792,1746939042631,-9770.11726622,0.00019492,2]
[360700793,1746939042640,-200.0,0.000195,7]
[360700794,1746939042649,-296.83510058,0.0001952,2]
[360700795,1746939042658,-170.34662485,0.00019525,2]
[360700796,1746939042668,-9770.11726622,0.0001955,2]
[360700797,1746939042677,-400.0,0.00019562,2]
[360700798,1746939042686,-400.0,0.00019562,2]
[360700799,1746939042696,-400.0,0.00019562,2]
[360700800,1746939042705,-400.0,0.00019562,2]
[360700801,1746939042714,-400.0,0.00019562,2]
[360700802,1746939042724,-400.0,0.00019562,2]
[360700803,1746939042734,-235.24,0.00019562,2]
[360700804,1746939042745,-400.0,0.00019562,2]
[360700805,1746939042754,-400.0,0.00019562,2]
[360700806,1746939042764,-400.0,0.00019562,2]
[360700807,1746939042773,-325.99,0.00019562,2]
[360700808,1746939042784,-218.93,0.00019562,2]
[360700809,1746939042794,-400.0,0.00019562,2]
[360700810,1746939042802,-470.0,0.00019562,2]
[360700811,1746939042812,-400.0,0.00019562,2]
[360700812,1746939042822,-400.0,0.00019562,2]
[360700813,1746939042832,-400.0,0.00019562,2]
[360700814,1746939042841,-400.0,0.00019562,2]
[360700815,1746939042850,-400.0,0.00019562,2]
[360700816,1746939042860,-400.0,0.00019562,2]
[360700817,1746939042869,-400.0,0.00019562,2]
[360700818,1746939042878,-400.0,0.00019562,2]
[360700819,1746939042887,-206.95184098,0.00019562,2]
[360700820,1746939042897,-400.0,0.00019562,2]
[360700821,1746939042907,-400.0,0.00019562,2]
[360700822,1746939042916,-400.0,0.00019562,2]
[360700823,1746939042925,-400.0,0.00019562,2]
[360700824,1746939042934,-467.55775534,0.00019562,2]
[360700825,1746939042943,-400.0,0.00019562,2]
[360700826,1746939042952,-400.0,0.00019562,2]
[360700827,1746939042961,-400.0,0.00019562,2]
[360700828,1746939042970,-400.0,0.00019562,2]
[360700829,1746939042979,-400.0,0.00019562,2]
[360700830,1746939042988,-400.0,0.00019562,2]
[360700831,1746939042997,-494.52061501,0.00019562,2]
[360700832,1746939043007,-530.59848353,0.00019562,2]
[360700833,1746939043018,-400.0,0.00019562,2]
[360700834,1746939043027,-400.0,0.00019562,2]
[360700835,1746939043036,-400.0,0.00019562,2]
[360700836,1746939043046,-400.0,0.00019562,2]
[360700837,1746939043057,-400.0,0.00019562,2]
[360700838,1746939043066,-400.0,0.00019562,2]
[360700839,1746939043075,-400.0,0.00019562,2]
[360700840,1746939043084,-400.0,0.00019562,2]
[360700841,1746939043094,-400.0,0.00019562,2]
[360700842,1746939043103,-400.0,0.00019562,2]
[360700843,1746939043114,-400.0,0.00019562,2]
[360700844,1746939043123,-400.0,0.00019562,2]
[360700845,1746939043134,-400.0,0.00019562,2]
[360700846,1746939043145,-400.0,0.00019562,2]
[360700847,1746939043154,-400.0,0.00019562,2]
[360700848,1746939043163,-400.0,0.00019562,2]
[360700849,1746939043172,-400.0,0.00019562,2]
[360700850,1746939043182,-400.0,0.00019562,2]
[360700851,1746939043191,-400.0,0.00019562,2]
[360700852,1746939043201,-400.0,0.00019562,2]
[360700853,1746939043210,-400.0,0.00019562,2]
[360700854,1746939043219,-400.0,0.00019562,2]
[360700855,1746939043230,-400.0,0.00019562,2]
[360700856,1746939043241,-400.0,0.00019562,2]
[360700857,1746939043251,-400.0,0.00019562,2]
[360700858,1746939043260,-500.0,0.00019562,2]
[360700859,1746939043270,-400.0,0.00019562,2]
[360700860,1746939043279,-400.0,0.00019562,2]
[360700861,1746939043288,-400.0,0.00019562,2]
[360700862,1746939043299,-361.94,0.00019562,2]
[360700863,1746939043309,-166.53748789,0.00019562,2]
[360700864,1746939043320,-400.0,0.00019562,2]
[360700865,1746939043331,-400.0,0.00019562,2]
[360700866,1746939043340,-400.0,0.00019562,2]
[360700867,1746939043349,-400.0,0.00019562,2]
[360700868,1746939043359,-400.0,0.00019562,2]
[360700869,1746939043368,-400.0,0.00019562,2]
[360700870,1746939043378,-400.0,0.00019562,2]
[360700871,1746939043387,-400.0,0.00019562,2]
[360700872,1746939043396,-400.0,0.00019562,2]
[360700873,1746939043406,-400.0,0.00019562,2]
[360700874,1746939043415,-400.0,0.00019562,2]
[360700875,1746939043425,-400.0,0.00019562,2]
[360700876,1746939043434,-400.0,0.00019562,2]
[360700877,1746939043443,-400.0,0.00019562,2]
[360700878,1746939043453,-400.0,0.00019562,2]
[360700879,1746939043463,-400.0,0.00019562,2]
[360700880,1746939043472,-400.0,0.00019562,2]
[360700881,1746939043482,-400.0,0.00019562,2]
[360700882,1746939043492,-400.0,0.00019562,2]
[360700883,1746939043501,-400.0,0.00019562,2]
[360700884,1746939043511,-400.0,0.00019562,2]
[360700885,1746939043522,-400.0,0.00019562,2]
[360700886,1746939043535,-400.0,0.00019562,2]
[360700887,1746939043544,-400.0,0.00019562,2]
[360700888,1746939043554,-400.0,0.00019562,2]
[360700889,1746939043563,-400.0,0.00019562,2]
[360700890,1746939043573,-400.0,0.00019562,2]
[360700891,1746939043582,-400.0,0.00019562,2]
[360700892,1746939043592,-400.0,0.00019562,2]
[360700893,1746939043603,-400.0,0.00019562,2]
[360700894,1746939043613,-400.0,0.00019562,2]
[360700895,1746939043623,-400.0,0.00019562,2]
[360700896,1746939043632,-400.0,0.00019562,2]
[360700897,1746939043641,-400.0,0.00019562,2]
[360700898,1746939043650,-400.0,0.00019562,2]
[360700899,1746939043659,-400.0,0.00019562,2]
[360700900,1746939043668,-400.0,0.00019562,2]
[360700901,1746939043678,-400.0,0.00019562,2]
[360700902,1746939043687,-401.73194142,0.00019562,2]
[360700903,1746939043696,-168.17992521,0.00019567,2]
[360700904,1746939043705,-4590.7437719,0.00019567,2]
[360700905,1746939043715,-296.83510058,0.00019568,2]
[360700906,1746939043724,-1000.0,0.00019571,2]
[360700907,1746939043733,-404.63930698,0.00019572,2]
[360700908,1746939043743,-504.40652299,0.00019572,2]
[360700909,1746939043752,-400.0,0.00019572,2]
[360700910,1746939043761,-473.80501073,0.00019572,2]
[360700911,1746939043770,-400.70752194,0.00019572,2]
[360700912,1746939043781,-510.55816799,0.00019572,2]
[360700913,1746939043792,-501.81829406,0.00019572,2]
[360700914,1746939043802,-400.0,0.00019572,2]
[360700915,1746939043813,-386.6980963,0.00019572,2]
[360700916,1746939043823,-156.08790463,0.00019572,2]
[360700917,1746939043833,-400.0,0.00019572,2]
[360700918,1746939043842,-402.70396261,0.00019572,2]
[360700919,1746939043853,-401.78148475,0.00019572,2]
[360700920,1746939043863,-400.0,0.00019572,2]
[360700921,1746939043872,-253.02,0.00019572,2]
[360700922,1746939043881,-400.62538518,0.00019572,2]
[360700923,1746939043890,-400.0,0.00019572,2]
[360700924,1746939043899,-502.23250671,0.00019572,2]
[360700925,1746939043908,-400.0,0.00019572,2]
[360700926,1746939043917,-401.16625263,0.00019572,2]
[360700927,1746939043927,-400.0,0.00019572,2]
[360700928,1746939043936,-402.38920822,0.00019572,2]
[360700929,1746939043945,-400.0,0.00019572,2]
[360700930,1746939043954,-400.0,0.00019572,2]
[360700931,1746939043964,-400.0,0.00019572,2]
[360700932,1746939043973,-400.0,0.00019572,2]
[360700933,1746939043983,-400.0,0.00019572,2]
[360700934,1746939043994,-400.0,0.00019572,2]
[360700935,1746939044003,-500.0,0.00019572,2]
[360700936,1746939044013,-400.0,0.00019572,2]
[360700937,1746939044024,-400.0,0.00019572,2]
[360700938,1746939044033,-400.0,0.00019572,2]
[360700939,1746939044042,-293.17,0.00019572,2]
[360700940,1746939044052,-400.0,0.00019572,2]
[360700941,1746939044061,-400.0,0.00019572,2]
[360700942,1746939044070,-400.0,0.00019572,2]
[360700943,1746939044081,-400.0,0.00019572,2]
[360700944,1746939044090,-400.0,0.00019572,2]
[360700945,1746939044100,-400.0,0.00019572,2]
[360700946,1746939044111,-400.0,0.00019572,2]
[360700947,1746939044122,-400.0,0.00019572,2]
[360700948,1746939044131,-400.0,0.00019572,2]
[360700950,1746939044141,-400.0,0.00019572,2]
[360700951,1746939044152,-400.0,0.00019572,2]
[360700952,1746939044162,-400.0,0.00019572,2]
[360700953,1746939044171,-500.0,0.00019572,2]
[360700954,1746939044181,-400.0,0.00019572,2]
[360700955,1746939044190,-400.0,0.00019572,2]
[360700956,1746939044200,-400.0,0.00019572,2]
[360700957,1746939044209,-400.0,0.00019572,2]
[360700958,1746939044219,-400.0,0.00019572,2]
[360700959,1746939044228,-400.0,0.00019572,2]
[360700960,1746939044237,-245.99,0.00019572,2]
[360700961,1746939044247,-400.0,0.00019572,2]
[360700962,1746939044258,-400.0,0.00019572,2]
[360700963,1746939044268,-400.0,0.00019572,2]
[360700964,1746939044278,-400.0,0.00019572,2]
[360700965,1746939044289,-494.9,0.00019572,2]
[360700966,1746939044298,-400.0,0.00019572,2]
[360700967,1746939044307,-400.0,0.00019572,2]
[360700969,1746939044316,-400.0,0.00019572,2]
[360700971,1746939044326,-400.0,0.00019572,2]
[360700974,1746939044335,-529.22,0.00019572,2]
[360700977,1746939044344,-249.42,0.00019572,2]
[360700980,1746939044353,-400.0,0.00019572,2]
[360700982,1746939044363,-400.0,0.00019572,2]
[360700983,1746939044372,-574.4,0.00019572,2]
[360700984,1746939044382,-151.0,0.00019572,2]
[360700985,1746939044392,-400.0,0.00019572,2]
[360700986,1746939044402,-400.0,0.00019572,2]
[360700987,1746939044412,-400.0,0.00019572,2]
[360700988,1746939044421,-462.47,0.00019572,2]
[360700989,1746939044431,-400.0,0.00019572,2]
[360700990,1746939044440,-400.0,0.00019572,2]
[360700991,1746939044449,-3753.94,0.00019572,2]
[360700992,1746939044459,-400.0,0.00019572,2]
[360700993,1746939044468,-400.0,0.00019572,2]
[360700994,1746939044477,-400.0,0.00019572,2]
[360700995,1746939044486,-400.0,0.00019572,2]
[360700996,1746939044496,-400.0,0.00019572,2]
[360700997,1746939044506,-400.0,0.00019572,2]
[360700998,1746939044516,-400.0,0.00019572,2]
[360700999,1746939044527,-400.0,0.00019572,2]
[360701000,1746939044536,-400.0,0.00019572,2]
[360701001,1746939044546,-400.0,0.00019572,2]
[360701002,1746939044555,-400.0,0.00019572,2]
[360701003,1746939044565,-400.0,0.00019572,2]
[360701004,1746939044576,-400.0,0.00019572,2]
[360701005,1746939044586,-400.0,0.00019572,2]
[360701006,1746939044595,-400.0,0.00019572,2]
[360701007,1746939044607,-400.0,0.00019572,2]
[360701008,1746939044616,-400.0,0.00019572,2]
[360701009,1746939044625,-400.0,0.00019572,2]
[360701010,1746939044635,-400.0,0.00019572,2]
[360701011,1746939044644,-400.0,0.00019572,2]
[360701012,1746939044654,-400.0,0.00019572,2]
[360701013,1746939044663,-400.0,0.00019572,2]
[360701014,1746939044673,-400.0,0.00019572,2]
[360701015,1746939044683,-400.0,0.00019572,2]
[360701016,1746939044692,-400.0,0.00019572,2]
[360701017,1746939044701,-400.0,0.00019572,2]
[360701018,1746939044711,-400.0,0.00019572,2]
[360701019,1746939044720,-400.0,0.00019572,2]
[360701020,1746939044729,-400.0,0.00019572,2]
[360701021,1746939044739,-400.0,0.00019572,2]
[360701022,1746939044748,-400.0,0.00019572,2]
[360701023,1746939044757,-400.0,0.00019572,2]
[360701024,1746939044766,-400.0,0.00019572,2]
[360701025,1746939044775,-400.0,0.00019572,2]
[360701026,1746939044784,-400.0,0.00019572,2]
[360701027,1746939044794,-151.0,0.00019572,2]
[360701028,1746939044803,-400.0,0.00019572,2]
[360701029,1746939044813,-151.0,0.00019572,2]
[360701030,1746939044823,-400.0,0.00019572,2]
[360701031,1746939044834,-400.0,0.00019572,2]
[360701032,1746939044843,-400.0,0.00019572,2]
[360701033,1746939044853,-400.0,0.00019572,2]
[360701034,1746939044862,-151.0,0.00019572,2]
[360701035,1746939044871,-539.946843,0.00019572,2]
[360701036,1746939044880,-539.946843,0.00019572,2]
[360701037,1746939044890,-400.0,0.00019572,2]
[360701038,1746939044899,-400.0,0.00019572,2]
[360701039,1746939044908,-400.0,0.00019572,2]
[360701040,1746939044918,-400.0,0.00019572,2]
[360701041,1746939044927,-400.0,0.00019572,2]
[360701042,1746939044936,-123915.62828675,0.00019572,2]
[360701043,1746939045176,-406.67770329,0.00019275,2]
[360701044,1746939045185,-1526.33545511,0.0001947,2]
[360701045,1746939045414,-6918.34363836,0.0001947,2]
[360701046,1746939045430,-21555.32090653,0.0001947,2]
[360701047,1746939045440,-412.95267447,0.00019491,2]
[360701048,1746939045450,-264231.05364391,0.00019572,2]
[360701049,1746939045638,-1807.72316919,0.00019572,2]
[360701050,1746939045748,-822.80844066,0.00019572,2]
[360701051,1746939045761,-564.97609223,0.00019572,2]
[360701056,1746939495028,299.96,0.00030137,120]
[360701057,1746939505217,250.0,0.00017,2]
[360701058,1746939518899,150.0,0.000185,5]
[360701062,1746939620447,159.97,0.00013699,2]
[360701063,1746939672071,1870.0,0.00025,60]
[360701064,1746939737189,1097.0,0.00030137,120]
[360701068,1746939885761,795.4,0.00016235,2]
[360701071,1746940044088,-454.31,0.0001812,2]
[360701072,1746940044110,-202.12,0.00018124,2]
[360701073,1746940044132,-200.0,0.00018126,2]
[360701074,1746940044153,-151.38628155,0.00018132,2]
[360701086,1746940231003,2000.0,0.000301,120]
[360701089,1746940231539,-150.0,0.000181,2]
[360701090,1746940231548,-164.3,0.00018106,2]
[360701091,1746940231558,-321.36,0.00018106,2]
[360701092,1746940231567,-300.0,0.00018114,2]
[360701093,1746940231576,-154.76243828,0.00018115,2]
[360701094,1746940231587,-478.31588386,0.00018115,2]
[360701095,1746940231650,-2155.68293364,0.00018115,2]
[360701096,1746940231662,-757.55051937,0.00018115,2]
[360701131,1746940238179,-381.48,0.00018115,2]
[360701132,1746940238195,-277063.23822485,0.00018115,2]
[360701133,1746940238204,-848.61371845,0.00018132,2]
[360701134,1746940238214,-250.0,0.00018142,2]
[360701135,1746940238223,-249.11,0.00018152,2]
[360701136,1746940238232,-200.0,0.00018196,2]
[360701137,1746940238242,-250.0,0.00018215,2]
[360701138,1746940238251,-200.0,0.00018334,2]
[360701139,1746940238260,-300.0,0.00018438,2]
[360701140,1746940238270,-1200.0,0.00018438,2]
[360701141,1746940238279,-23900.0,0.0001844,2]
[360701142,1746940238288,-164.3,0.00018485,2]
[360701143,1746940238297,-1852.42,0.00018495,2]
[360701144,1746940238307,-795.4,0.00018499,2]
[360701145,1746940238316,-319.6055061,0.000185,2]
[360701146,1746940238325,-207.4,0.00018605,2]
[360701147,1746940238334,-158.26,0.0001863,2]
[360701148,1746940238343,-158.26,0.00018649,2]
[360701149,1746940238352,-158.26,0.00018667,2]
[360701150,1746940238362,-158.26,0.00018686,2]
[360701151,1746940238374,-158.26,0.00018704,2]
[360701152,1746940238385,-166.87,0.00018713,2]
[360701153,1746940238394,-158.26,0.00018723,2]
[360701154,1746940238404,-441.60966493,0.00018792,2]
[360701155,1746940238414,-248.86846367,0.00018963,2]
[360701156,1746940238423,-696.77,0.00018978,2]
[360701157,1746940238432,-300.0,0.00019,2]
[360701158,1746940238443,-10400.0,0.00019,2]
[360701159,1746940238452,-500.0,0.00019178,2]
[360701160,1746940238461,-517.46106117,0.00019178,2]
[360701161,1746940238471,-151.0,0.00019178,2]
[360701162,1746940238480,-154.28,0.00019178,2]
[360701163,1746940238490,-1021.0,0.000193,2]
[360701164,1746940238499,-6283.35549813,0.00019362,2]
[360701165,1746940238508,-200.0,0.00019418,2]
[360701166,1746940238518,-500.0,0.00019419,2]
[360701167,1746940238527,-500.0,0.00019419,2]
[360701168,1746940238537,-200.0,0.00019419,2]
[360701169,1746940238546,-6283.35549812,0.00019422,2]
[360701170,1746940238556,-151.0,0.00019462,2]
[360701171,1746940238566,-156.66233414,0.00019462,2]
[360701172,1746940238575,-151.0,0.00019462,2]
[360701173,1746940238584,-668.65185757,0.00019462,2]
[360701174,1746940238594,-151.0,0.00019462,2]
[360701175,1746940238603,-300.0,0.00019472,2]
[360701176,1746940238612,-504.44490417,0.00019473,2]
[360701177,1746940238621,-500.0,0.00019473,2]
[360701178,1746940238631,-501.01024002,0.00019473,2]
[360701179,1746940238642,-500.0,0.00019473,2]
[360701180,1746940238652,-500.0,0.00019473,2]
[360701181,1746940238662,-400.0,0.00019473,2]
[360701182,1746940238675,-450.0,0.00019473,2]
[360701183,1746940238685,-400.0,0.00019473,2]
[360701184,1746940238694,-400.0,0.00019473,2]
[360701185,1746940238703,-400.0,0.00019473,2]
[360701186,1746940238713,-400.0,0.00019473,2]
[360701187,1746940238724,-400.0,0.00019473,2]
[360701188,1746940238735,-400.0,0.00019473,2]
[360701189,1746940238744,-223.43246538,0.00019473,2]
[360701190,1746940238754,-400.0,0.00019473,2]
[360701191,1746940238763,-400.0,0.00019473,2]
[360701192,1746940238772,-400.0,0.00019473,2]
[360701193,1746940238782,-400.0,0.00019473,2]
[360701194,1746940238792,-400.0,0.00019473,2]
[360701195,1746940238803,-400.0,0.00019473,2]
[360701196,1746940238814,-400.0,0.00019473,2]
[360701197,1746940238825,-400.0,0.00019473,2]
[360701198,1746940238835,-400.0,0.00019473,2]
[360701199,1746940238844,-400.0,0.00019473,2]
[360701200,1746940238854,-400.0,0.00019473,2]
[360701201,1746940238873,-400.0,0.00019473,2]
[360701202,1746940238891,-400.0,0.00019473,2]
[360701203,1746940238901,-400.0,0.00019473,2]
[360701204,1746940238911,-400.0,0.00019473,2]
[360701205,1746940238922,-400.0,0.00019473,2]
[360701206,1746940238932,-402.52441804,0.00019473,2]
[360701207,1746940238941,-400.0,0.00019473,2]
[360701208,1746940238952,-400.0,0.00019473,2]
[360701209,1746940238962,-400.0,0.00019473,2]
[360701210,1746940238971,-400.0,0.00019473,2]
[360701211,1746940238981,-400.0,0.00019473,2]
[360701212,1746940238990,-400.0,0.00019473,2]
[360701213,1746940239000,-400.0,0.00019473,2]
[360701214,1746940239010,-500.0,0.00019473,2]
[360701215,1746940239019,-400.0,0.00019473,2]
[360701216,1746940239029,-400.0,0.00019473,2]
[360701217,1746940239039,-400.0,0.00019473,2]
[360701218,1746940239049,-537.49926504,0.00019473,2]
[360701219,1746940239060,-400.0,0.00019473,2]
[360701220,1746940239069,-400.0,0.00019473,2]
[360701221,1746940239079,-400.0,0.00019473,2]
[360701222,1746940239088,-433.83,0.00019473,2]
[360701223,1746940239098,-400.0,0.00019473,2]
[360701224,1746940239107,-400.0,0.00019473,2]
[360701225,1746940239117,-400.0,0.00019473,2]
[360701226,1746940239127,-400.0,0.00019473,2]
[360701227,1746940239136,-400.0,0.00019473,2]
[360701228,1746940239146,-400.0,0.00019473,2]
[360701229,1746940239155,-400.0,0.00019473,2]
[360701230,1746940239165,-400.0,0.00019473,2]
[360701231,1746940239174,-400.0,0.00019473,2]
[360701232,1746940239183,-400.0,0.00019473,2]
[360701233,1746940239193,-400.0,0.00019473,2]
[360701234,1746940239202,-400.0,0.00019473,2]
[360701235,1746940239213,-494.9,0.00019473,2]
[360701236,1746940239224,-400.0,0.00019473,2]
[360701237,1746940239234,-400.0,0.00019473,2]
[360701238,1746940239243,-400.0,0.00019473,2]
[360701239,1746940239253,-391.81934953,0.00019473,2]
[360701240,1746940239263,-400.0,0.00019473,2]
[360701241,1746940239272,-400.0,0.00019473,2]
[360701242,1746940239282,-400.0,0.00019473,2]
[360701243,1746940239291,-249.65947145,0.00019473,2]
[360701244,1746940239302,-515.85,0.00019473,2]
[360701245,1746940239312,-400.0,0.00019473,2]
[360701246,1746940239321,-400.0,0.00019473,2]
[360701247,1746940239331,-500.0,0.00019473,2]
[360701248,1746940239341,-400.0,0.00019473,2]
[360701249,1746940239351,-400.0,0.00019473,2]
[360701250,1746940239360,-400.0,0.00019473,2]
[360701251,1746940239370,-400.0,0.00019473,2]
[360701252,1746940239380,-428.57,0.00019473,2]
[360701253,1746940239390,-188.6615237,0.00019473,2]
[360701254,1746940239399,-400.0,0.00019473,2]
[360701255,1746940239409,-541.67023763,0.00019473,2]
[360701256,1746940239419,-400.0,0.00019473,2]
[360701257,1746940239428,-400.0,0.00019473,2]
[360701258,1746940239438,-400.0,0.00019473,2]
[360701259,1746940239447,-400.0,0.00019473,2]
[360701260,1746940239457,-550.47,0.00019473,2]
[360701261,1746940239466,-400.04,0.00019473,2]
[360701262,1746940239477,-400.0,0.00019473,2]
[360701263,1746940239486,-400.0,0.00019473,2]